bitfinex/quotes_SOLUSD_20250710
["timestamp","ask_amount","ask_price","bid_price","bid_amount"]
[1752112553557,12.71017189,157.95,157.91,44.9114621]
[1752112555151,12.77017189,157.95,157.91,44.9114621]
[1752112557584,12.77017189,157.95,157.91,38.57874474]
[1752112557756,18.64964886,157.93,157.91,32.2]
[1752112558976,18.64964886,157.93,157.91,44.91142204]
[1752112559181,18.64964886,157.93,157.88,6.33392449]
[1752112559366,18.64964886,157.93,157.91,6.37874474]
[1752112559558,18.64964886,157.93,157.91,38.53874474]
[1752112561557,18.64964886,157.93,157.91,32.16]
[1752112563192,18.64964886,157.93,157.91,44.87129738]
[1752112563679,18.70964886,157.95,157.92,6.37874474]
[1752112563992,18.70964886,157.95,157.94,6.37874474]
[1752112564168,0.06,157.95,157.94,6.37874474]
[1752112565461,0.06,157.95,157.94,12.71026303]
[1752112566283,0.06,157.95,157.94,6.37874474]
[1752112571070,0.06,157.95,157.94,32.12]
[1752112572471,0.06,157.95,157.92,12.71089034]
[1752112572472,25.0883936,157.95,157.92,32.12]
[1752112573765,18.70964886,157.95,157.92,32.12]
[1752112574175,18.70964886,157.95,157.92,38.49874474]
[1752112574591,18.70964886,157.95,157.92,6.37874474]
[1752112574776,18.70964886,157.95,157.93,32.12]
[1752112577800,0.06,157.95,157.93,32.12]
[1752112578174,0.06,157.95,157.93,44.83063647]
[1752112578372,0.06,157.95,157.94,6.37874474]
[1752112579292,0.06,157.95,157.94,12.71026303]
[1752112582203,0.06,157.95,157.94,6.33151829]
[1752112582404,0.06,157.95,157.94,12.71026303]
[1752112590005,0.06,157.95,157.94,6.33151829]
[1752112590202,0.06,157.95,157.94,44.81026303]
[1752112591609,0.06,157.95,157.93,6.37874474]
[1752112591815,0.06,157.95,157.92,6.37874474]
[1752112591995,18.64964886,157.93,157.9,6.37874474]
[1752112592200,18.64964886,157.93,157.91,32.1]
[1752112592401,18.64964886,157.93,157.9,32.37874474]
[1752112592714,18.64964886,157.93,157.91,32.1]
[1752112592909,18.64964886,157.93,157.88,15.83404679]
[1752112592910,25.0283936,157.93,157.88,6.37874474]
[1752112593111,25.0283936,157.93,157.89,32.1]
[1752112593413,18.64964886,157.91,157.9,32.1]
[1752112595085,18.64964886,157.91,157.88,12.71264009]
[1752112595287,18.64964886,157.91,157.89,32.1]
[1752112595490,6.33201264,157.93,157.89,32.1]
[1752112595802,18.64964886,157.91,157.89,32.1]
[1752112597098,12.71075738,157.93,157.89,32.1]
[1752112598722,18.64964886,157.91,157.89,32.1]
[1752112599296,6.37874474,157.91,157.87,26.0]
[1752112599518,18.64964886,157.89,157.87,32.1]
[1752112601506,6.39204014,157.93,157.88,6.37874474]
[1752112601727,18.64964886,157.92,157.89,32.1]
[1752112602222,6.37874474,157.9,157.85,150.01646882]
[1752112602412,6.37874474,157.89,157.86,32.12]
[1752112602609,6.33350125,157.9,157.86,32.12]
[1752112602816,12.71224599,157.9,157.86,32.12]
[1752112603606,6.37874474,157.88,157.85,26.0]
[1752112603843,6.37874474,157.87,157.83,26.0]
[1752112604038,6.37874474,157.88,157.84,6.37874474]
[1752112604640,6.37874474,157.88,157.85,32.14]
[1752112604842,12.71270694,157.88,157.85,32.14]
[1752112605940,12.71270694,157.88,157.84,38.51874474]
[1752112606442,12.71270694,157.88,157.83,32.33567063]
[1752112606643,18.64964886,157.86,157.84,32.12]
[1752112607142,25.0283936,157.87,157.84,32.12]
[1752112609444,25.0283936,157.87,157.83,38.71441537]
[1752112609650,25.0283936,157.87,157.84,32.12]
[1752112612438,25.0283936,157.87,157.83,38.71441537]
[1752112612651,25.0283936,157.87,157.84,32.12]
[1752112614749,18.64964886,157.87,157.84,32.12]
[1752112619067,31.36282514,157.87,157.83,26.0]
[1752112619251,31.36282514,157.87,157.84,32.12]
[1752112620956,18.64964886,157.85,157.84,32.12]
[1752112621146,24.98477714,157.85,157.82,32.12]
[1752112621350,6.37874474,157.84,157.78,0.03]
[1752112621551,6.37874474,157.82,157.79,32.12]
[1752112622057,18.64964886,157.82,157.79,32.12]
[1752112623065,12.71443492,157.84,157.79,38.45749176]
[1752112623278,12.71443492,157.84,157.79,44.8362365]
[1752112624259,18.64964886,157.85,157.82,6.37874474]
[1752112624463,18.64964886,157.86,157.82,6.37874474]
[1752112624773,18.64964886,157.86,157.81,32.12]
[1752112624774,18.64964886,157.86,157.83,6.37874474]
[1752112625073,18.64964886,157.86,157.83,38.49874474]
[1752112626048,0.06,157.87,157.84,6.37874474]
[1752112627288,0.06,157.87,157.85,6.37874474]
[1752112629366,0.06,157.87,157.86,6.37874474]
[1752112631478,0.06,157.87,157.86,12.71347171]
[1752112631882,0.06,157.87,157.86,6.33472697]
[1752112632080,0.06,157.87,157.86,12.71347171]
[1752112641389,0.06,157.87,157.86,38.71347171]
[1752112652405,0.06,157.87,157.86,70.81347171]
[1752112652904,0.06,157.87,157.86,64.43472697]
[1752112653091,0.06,157.87,157.86,70.81347171]
[1752112655203,0.06,157.87,157.86,64.43472697]
[1752112655502,0.06,157.87,157.86,70.81347171]
[1752112658509,0.06,157.87,157.86,38.71347171]
[1752112658715,0.06,157.87,157.86,70.85347171]
[1752112660596,0.06,157.87,157.86,32.33472697]
[1752112660803,0.06,157.87,157.86,70.85347171]
[1752112661010,0.06,157.87,157.86,70.83347171]
[1752112661499,0.06,157.87,157.86,64.45472697]
[1752112661698,0.06,157.87,157.86,70.83347171]
[1752112667720,0.06,157.87,157.86,64.45472697]
[1752112668417,0.06,157.87,157.86,70.83347171]
[1752112669320,0.06,157.87,157.86,64.45472697]
[1752112669506,0.06,157.87,157.86,70.83347171]
[1752112674030,0.06,157.87,157.86,64.45472697]
[1752112674342,0.06,157.87,157.86,70.83347171]
[1752112674515,0.06,157.87,157.86,64.45472697]
[1752112674709,0.06,157.87,157.86,70.83347171]
[1752112676921,0.06,157.87,157.86,68.52351532]
[1752112681256,0.06,157.87,157.86,68.50351532]
[1752112681834,0.06,157.87,157.86,64.43472697]
[1752112682039,0.06,157.87,157.86,68.50351532]
[1752112685457,0.06,157.87,157.86,58.1]
[1752112685647,0.06,157.87,157.86,32.1]
[1752112686248,0.06,157.87,157.85,10.40360056]
[1752112686476,0.06,157.87,157.86,32.1]
[1752112688373,18.79181043,157.86,157.78,0.03]
[1752112688551,18.64964886,157.82,157.79,32.1]
[1752112688755,18.64964886,157.82,157.79,42.50617176]
[1752112688966,18.64964886,157.82,157.8,36.16878835]
[1752112690279,18.64964886,157.82,157.81,32.1]
[1752112691273,18.79181043,157.83,157.79,6.3637618]
[1752112691577,25.15557223,157.83,157.8,32.1]
[1752112692968,25.12779394,157.83,157.8,32.1]
[1752112693168,31.49155574,157.83,157.8,32.1]
[1752112693377,25.12779394,157.83,157.8,32.1]
[1752112693571,31.49155574,157.83,157.8,32.1]
[1752112694659,25.15557223,157.83,157.8,32.1]
[1752112694872,31.49150489,157.83,157.8,32.1]
[1752112695357,25.12774309,157.83,157.8,32.1]
[1752112695564,25.12774309,157.83,157.8,38.4637618]
[1752112695884,25.12774309,157.83,157.8,32.1]
[1752112696681,25.12774309,157.83,157.8,32.12]
[1752112697479,31.49150489,157.83,157.8,32.12]
[1752112698081,31.49150489,157.83,157.79,6.3637618]
[1752112698282,31.49150489,157.83,157.79,38.4837618]
[1752112699266,31.49150489,157.83,157.79,32.12]
[1752112699473,31.49150489,157.83,157.79,38.4837618]
[1752112700378,0.14216157,157.84,157.8,12.70080286]
[1752112700582,6.50592337,157.84,157.8,12.70080286]
[1752112701382,146.4,157.86,157.81,38.4837618]
[1752112701586,18.70964886,157.87,157.84,6.3637618]
[1752112701977,18.85181043,157.87,157.84,6.3637618]
[1752112702282,25.18620814,157.87,157.84,6.3637618]
[1752112702491,25.04404657,157.87,157.84,6.3637618]
[1752112702691,31.40780837,157.87,157.83,32.12]
[1752112702877,31.40780837,157.87,157.83,38.4837618]
[1752112704669,31.40780837,157.87,157.83,32.12]
[1752112704864,31.40780837,157.87,157.83,38.4837618]
[1752112705999,6.50592337,157.86,157.81,32.12]
[1752112706172,18.64964886,157.83,157.8,32.12]
[1752112706483,18.64964886,157.83,157.79,6.3637618]
[1752112706688,18.64964886,157.83,157.79,38.4837618]
[1752112707472,24.98570135,157.83,157.79,38.4837618]
[1752112707793,31.34946315,157.83,157.79,38.4837618]
[1752112709197,24.98570135,157.83,157.79,38.4837618]
[1752112709400,31.34946315,157.83,157.79,38.4837618]
[1752112709892,24.98570135,157.83,157.79,38.4837618]
[1752112710977,24.98570135,157.83,157.79,6.3637618]
[1752112711278,24.98570135,157.83,157.8,6.3637618]
[1752112713185,146.4,157.86,157.79,32.12]
[1752112713385,18.64964886,157.85,157.83,6.3637618]
[1752112714799,0.06,157.87,157.81,32.12]
[1752112714800,18.85181043,157.87,157.84,6.3637618]
[1752112715580,18.70964886,157.87,157.85,6.3637618]
[1752112722587,18.70964886,157.87,157.84,6.3637618]
[1752112724315,18.70964886,157.87,157.83,12.69956257]
[1752112725029,0.06,157.87,157.84,6.3637618]
[1752112725200,18.64964886,157.86,157.84,6.3637618]
[1752112728908,0.06,157.87,157.84,4.07079053]
[1752112729110,7.09242126,157.86,157.84,4.07079053]
[1752112729718,18.64964886,157.85,157.84,4.07079053]
[1752112729918,18.64964886,157.86,157.84,4.07079053]
[1752112733029,6.33493747,157.86,157.81,26.0]
[1752112733231,7.08515138,157.85,157.82,4.07079053]
[1752112733521,18.64964886,157.85,157.82,4.07079053]
[1752112733699,18.64964886,157.83,157.82,4.07079053]
[1752112737112,18.64964886,157.83,157.82,10.40712306]
[1752112737630,18.64964886,157.83,157.82,4.07079053]
[1752112739323,18.64964886,157.84,157.81,58.1]
[1752112739513,18.64964886,157.84,157.81,62.17079053]
[1752112739715,18.64964886,157.84,157.81,30.07079053]
[1752112739916,18.64964886,157.84,157.81,62.17079053]
[1752112742235,18.64964886,157.84,157.81,58.1]
[1752112742416,18.64964886,157.84,157.81,62.17079053]
[1752112742617,18.64964886,157.84,157.81,58.1]
[1752112742821,18.64964886,157.84,157.81,62.17079053]
[1752112743530,6.33555873,157.84,157.81,62.17079053]
[1752112744037,6.33555873,157.84,157.81,58.1]
[1752112746754,6.33555873,157.84,157.81,62.17079053]
[1752112750141,6.33512828,157.85,157.81,58.1]
[1752112750361,18.64964886,157.83,157.81,62.17079053]
[1752112751139,10.40591881,157.85,157.81,62.17079053]
[1752112751438,18.64964886,157.83,157.81,62.17079053]
[1752112752160,0.06,157.84,157.81,62.17079053]
[1752112755363,0.06,157.84,157.82,4.07079053]
[1752112759658,0.06,157.84,157.81,62.17079053]
[1752112760029,0.06,157.84,157.81,58.1]
[1752112760230,0.06,157.84,157.81,62.17079053]
[1752112761659,0.06,157.84,157.81,58.1]
[1752112761961,0.06,157.84,157.81,62.17079053]
[1752112762459,18.64964886,157.82,157.81,62.17079053]
[1752112768675,18.64964886,157.83,157.81,32.1]
[1752112768883,0.14216157,157.82,157.78,0.03]
[1752112769176,22.86260096,157.79,157.78,0.03]
[1752112770276,29.91566957,157.79,157.78,0.03]
[1752112770482,36.2532068,157.79,157.78,0.03]
[1752112770679,102.0597068,157.79,157.78,0.03]
[1752112772878,104.35951255,157.79,157.78,0.03]
[1752112775969,104.41951255,157.79,157.78,0.03]
[1752112777795,130.41951255,157.79,157.78,0.03]
[1752112779692,18.79181043,157.78,157.75,0.03]
[1752112779882,25.16240671,157.76,157.75,0.03]
[1752112780079,31.53300299,157.76,157.75,0.03]
[1752112780775,64.53965189,157.76,157.75,0.03]
[1752112780974,70.60705189,157.76,157.75,0.03]
[1752112781385,70.575198,157.76,157.75,0.03]
[1752112781600,64.507798,157.76,157.75,0.03]
[1752112782301,57.5011491,157.76,157.75,0.03]
[1752112787695,31.5011491,157.76,157.75,0.03]
[1752112789396,25.13055282,157.76,157.75,0.03]
[1752112790497,0.14216157,157.76,157.75,0.03]
[1752112792306,0.14216157,157.76,157.75,6.40059628]
[1752112792801,0.14216157,157.77,157.75,4.10516834]
[1752112793004,18.64964886,157.78,157.76,4.07516834]
[1752112793181,18.64964886,157.78,157.77,4.07516834]
[1752112793905,0.06,157.79,157.75,0.03]
[1752112794084,0.06,157.79,157.78,4.07516834]
[1752112795002,0.06,157.79,157.78,6.36540956]
[1752112796601,0.06,157.79,157.75,6.36899131]
[1752112797010,0.06,157.79,157.77,6.36540956]
[1752112798886,0.06,157.79,157.78,6.36540956]
[1752112801090,0.06,157.79,157.77,6.33821534]
[1752112801296,0.06,157.79,157.76,6.33862137]
[1752112801610,0.06,157.79,157.78,6.36540956]
[1752112803504,0.06,157.84,157.78,6.36540956]
[1752112803505,0.06,157.84,157.81,26.0]
[1752112803699,0.06,157.84,157.83,6.36540956]
[1752112808514,0.06,157.84,157.83,12.70134062]
[1752112808711,0.06,157.84,157.83,6.36540956]
[1752112813498,0.06,157.84,157.81,32.3365549]
[1752112813898,0.06,157.84,157.83,6.36540956]
[1752112814918,0.06,157.84,157.83,44.80134062]
[1752112817804,0.06,157.84,157.83,38.43593106]
[1752112818011,0.06,157.84,157.83,44.80134062]
[1752112822838,0.06,157.84,157.83,51.16675018]
[1752112824738,0.06,157.84,157.83,44.80134062]
[1752112825815,0.06,157.87,157.86,26.0]
[1752112826132,0.06,157.93,157.89,26.0]
[1752112826433,6.39202664,157.93,157.9,6.36540956]
[1752112826624,18.64964886,157.92,157.9,38.44540956]
[1752112828731,6.39204263,157.93,157.9,32.08]
[1752112828939,18.64964886,157.92,157.9,38.44540956]
[1752112830135,6.33236752,157.92,157.9,38.44540956]
[1752112830735,6.33236752,157.92,157.86,1.6128]
[1752112830921,24.98201638,157.92,157.89,6.36540956]
[1752112831121,24.98201638,157.92,157.9,32.08]
[1752112831537,31.34742594,157.92,157.9,32.08]
[1752112831736,33.32191999,157.91,157.86,26.0]
[1752112831919,20.41061043,157.91,157.88,6.36540956]
[1752112832116,18.64964886,157.91,157.9,6.36540956]
[1752112833552,6.39205343,157.93,157.9,6.36540956]
[1752112833737,6.39205343,157.93,157.91,6.36540956]
[1752112833937,6.39205343,157.93,157.9,6.36540956]
[1752112834855,0.06,157.93,157.92,6.36540956]
[1752112835346,0.06,157.93,157.91,38.44540956]
[1752112835733,0.06,157.93,157.92,6.36540956]
[1752112837139,0.06,157.93,157.91,38.44540956]
[1752112841535,0.06,157.93,157.91,32.08]
[1752112841734,0.06,157.93,157.91,38.44540956]
[1752112843730,0.06,157.93,157.91,32.08]
[1752112844736,0.14216157,157.91,157.87,6.39540956]
[1752112844931,18.64964886,157.89,157.87,32.11]
[1752112845132,6.36540956,157.89,157.87,0.03]
[1752112845535,25.15721999,157.88,157.87,0.03]
[1752112845743,31.49114448,157.88,157.87,0.03]
[1752112846647,18.64964886,157.88,157.87,6.39540956]
[1752112848230,18.64964886,157.88,157.87,0.03]
[1752112848428,18.64964886,157.88,157.87,6.39540956]
[1752112851584,18.64964886,157.88,157.87,38.47540956]
[1752112851762,0.06,157.93,157.9,26.0]
[1752112851969,0.06,157.93,157.92,6.36540956]
[1752112852462,0.06,157.93,157.92,12.69772972]
[1752112853668,0.06,157.93,157.92,6.33232016]
[1752112853848,0.06,157.93,157.92,12.69772972]
[1752112855454,0.06,157.93,157.92,19.06313928]
[1752112858848,0.06,157.93,157.92,45.06313928]
[1752112859050,0.06,157.93,157.92,19.06313928]
[1752112862445,0.06,157.98,157.95,26.0]
[1752112862752,0.06,157.98,157.97,6.36540956]
[1752112863349,0.06,157.98,157.95,26.0]
[1752112863548,0.06,157.98,157.97,6.36540956]
[1752112863764,0.06,157.98,157.95,26.0]
[1752112863950,0.06,157.98,157.96,38.52540956]
[1752112864563,0.06,157.98,157.97,6.36540956]
[1752112864750,0.06,157.98,157.97,32.16]
[1752112865162,0.06,157.98,157.97,38.52540956]
[1752112865770,0.06,157.98,157.97,32.16]
[1752112870247,0.06,157.98,157.97,38.52540956]
[1752112873754,0.06,157.98,157.97,32.16]
[1752112874773,0.06,157.98,157.94,12.69683056]
[1752112874774,0.06,157.98,157.96,32.14]
[1752112875580,18.64964886,157.97,157.95,32.14]
[1752112876554,12.75562969,157.98,157.9,32.14]
[1752112876555,26.52594886,157.95,157.9,32.14]
[1752112876778,18.64964886,157.93,157.9,32.2]
[1752112877174,7.8763,157.95,157.9,38.56540956]
[1752112877175,32.89135842,157.95,157.9,38.56540956]
[1752112877557,0.06,157.98,157.93,26.0]
[1752112877758,0.06,157.98,157.97,32.36540956]
[1752112877975,0.06,157.98,157.97,64.56540956]
[1752112878860,0.06,157.98,157.97,70.89572544]
[1752112879067,0.06,157.98,157.97,64.53031588]
[1752112879359,0.06,157.98,157.97,70.89572544]
[1752112879575,0.06,157.98,157.96,6.33056379]
[1752112879772,0.06,157.98,157.97,6.36540956]
[1752112880092,0.06,157.98,157.97,38.86540956]
[1752112880382,0.06,157.98,157.97,32.5]
[1752112880576,0.06,157.98,157.97,38.86540956]
[1752112881264,0.06,157.98,157.96,32.5]
[1752112881455,0.06,157.98,157.95,32.5]
[1752112883486,0.06,157.98,157.95,38.86540956]
[1752112884182,0.06,157.98,157.95,32.5]
[1752112884366,25.07505842,157.98,157.94,32.5]
[1752112885085,18.64964886,157.96,157.94,32.5]
[1752112885264,18.64964886,157.96,157.94,32.53]
[1752112888259,18.64964886,157.96,157.94,38.89540956]
[1752112888492,18.64964886,157.96,157.94,32.53]
[1752112888661,12.6962895,157.96,157.94,0.03]
[1752112888865,6.33087994,157.96,157.94,0.03]
[1752112890083,25.12212631,157.97,157.94,0.03]
[1752112891789,18.64964886,157.97,157.95,38.82540956]
[1752112891995,18.64964886,157.97,157.96,6.36540956]
[1752112892368,18.70964886,157.98,157.96,6.36540956]
[1752112892870,0.06,157.98,157.97,6.36540956]
[1752112893268,0.06,157.98,157.97,38.82540956]
[1752112893677,0.06,157.98,157.97,32.46]
[1752112896367,0.1,158.0,157.99,26.0]
[1752112896568,7.08287201,158.05,157.99,71.33298069]
[1752112896774,7.08287201,158.07,158.04,6.36540956]
[1752112897066,12.47968021,158.08,158.05,38.96540956]
[1752112897273,5.3968082,158.08,158.05,38.96540956]
[1752112897894,5.3968082,158.08,158.05,45.29252123]
[1752112901589,5.3968082,158.08,158.05,71.29252123]
[1752112902094,5.3968082,158.08,158.07,26.0]
[1752112902282,5.3968082,158.08,158.07,64.96540956]
[1752112902682,5.3968082,158.08,158.07,71.29172068]
[1752112909305,5.3968082,158.08,158.07,64.96540956]
[1752112909476,5.3968082,158.08,158.07,58.6]
[1752112909680,5.3968082,158.08,158.07,64.96540956]
[1752112910497,5.3968082,158.08,158.07,32.36540956]
[1752112911088,5.3968082,158.08,158.07,64.90540956]
[1752112914094,5.3968082,158.08,158.07,58.54]
[1752112916280,11.72279368,158.08,158.07,32.52]
[1752112916508,18.08820324,158.08,158.02,88.7]
[1752112916686,18.64964886,158.06,158.03,38.86540956]
[1752112917702,18.64964886,158.06,158.04,32.5]
[1752112917907,18.64964886,158.06,158.03,6.36540956]
[1752112918104,18.64964886,158.06,158.02,32.36540956]
[1752112918302,18.64964886,158.06,158.03,32.5]
[1752112919412,18.64964886,158.06,158.02,26.0]
[1752112919587,18.64964886,158.06,158.03,32.5]
[1752112919901,6.36540956,158.04,157.96,90.3452]
[1752112920095,6.36540956,158.04,157.99,6.36540956]
[1752112920294,6.36540956,158.04,158.0,32.52]
[1752112920607,6.36540956,158.04,158.0,38.88540956]
[1752112920910,6.36540956,158.04,158.0,32.52]
[1752112921104,24.97710516,158.05,158.0,38.88540956]
[1752112921612,6.36540956,158.04,158.0,45.21450586]
[1752112921807,31.34251472,158.05,158.0,45.21450586]
[1752112923506,31.34251472,158.05,158.01,6.36540956]
[1752112923813,31.34251472,158.05,158.02,32.5]
[1752112925300,24.97710516,158.05,158.02,32.5]
[1752112925499,18.64964886,158.05,158.03,6.36540956]
[1752112925706,18.64964886,158.05,158.02,38.86540956]
[1752112926212,24.97687272,158.05,158.02,38.86540956]
[1752112929517,18.64964886,158.05,158.02,38.86540956]
[1752112929906,18.64964886,158.05,158.03,6.36540956]
[1752112931818,24.97676247,158.05,158.03,6.36540956]
[1752112932111,18.64964886,158.05,158.03,6.36540956]
[1752112932522,18.70964886,158.06,158.03,6.36540956]
[1752112932721,25.03645198,158.06,158.03,6.36540956]
[1752112933223,25.03645198,158.06,158.02,32.5]
[1752112933422,25.03645198,158.06,158.03,6.36540956]
[1752112934003,18.70964886,158.06,158.04,6.36540956]
[1752112934205,0.06,158.06,158.05,32.36540956]
[1752112936013,0.06,158.06,158.05,38.69252123]
[1752112944209,0.06,158.06,158.05,64.78540956]
[1752112944717,0.06,158.06,158.05,58.42]
[1752112945118,0.06,158.06,158.05,64.78540956]
[1752112947019,0.06,158.06,158.05,64.82540956]
[1752112947621,0.06,158.06,158.04,6.36540956]
[1752112947812,0.06,158.06,158.05,32.46]
[1752112948012,0.06,158.06,158.03,6.36540956]
[1752112948342,0.06,158.06,158.05,6.36540956]
[1752112949050,0.06,158.06,158.05,12.69252123]
[1752112951931,0.06,158.06,158.05,6.35711167]
[1752112952119,0.06,158.06,158.05,12.72252123]
[1752112960821,1e-08,158.09,158.08,44.64964886]
[1752112961026,1e-08,158.11,158.09,0.14216157]
[1752112961221,1e-08,158.11,158.1,38.88540956]
[1752112962050,1e-08,158.11,158.1,45.21052024]
[1752112962254,1e-08,158.11,158.1,45.35268181]
[1752112962741,1e-08,158.11,158.1,45.21052024]
[1752112965158,0.1,158.14,158.13,32.36540956]
[1752112965339,0.1,158.14,158.13,64.90540956]
[1752112966358,0.1,158.14,158.13,71.22932026]
[1752112968129,0.1,158.14,158.13,71.20932026]
[1752112968326,1.5325,158.26,158.17,26.0]
[1752112968532,0.03791761,158.29,158.26,26.0]
[1752112968756,0.03791761,158.29,158.27,32.54]
[1752112968936,0.03791761,158.29,158.28,6.36540956]
[1752112969136,0.03791761,158.29,158.24,1.6057]
[1752112969354,5.3968082,158.4,158.24,1.6057]
[1752112969355,6.91855239,158.39,158.31,26.0]
[1752112969524,5.3968082,158.4,158.33,32.36540956]
[1752112969942,5.3968082,158.4,158.39,26.0]
[1752112970159,5.3968082,158.4,158.39,65.24540956]
[1752112970521,1.2993238,158.42,158.41,26.0]
[1752112970723,1.2993238,158.42,158.41,65.24540956]
[1752112970953,16.30996231,158.48,158.41,58.88]
[1752112971162,10.0,158.48,158.41,59.02216157]
[1752112971457,10.0,158.48,158.47,10.51533622]
[1752112971749,10.0,158.48,158.47,43.41533622]
[1752112972254,10.0,158.48,158.47,32.94]
[1752112972455,26.82534999,158.48,158.43,10.51533622]
[1752112972659,10.51533622,158.47,158.43,10.51533622]
[1752112972956,10.51533622,158.47,158.33,22.27339705]
[1752112973130,10.0,158.48,158.45,10.51533622]
[1752112973329,16.3100472,158.48,158.46,32.96]
[1752112973541,10.0,158.48,158.47,10.51533622]
[1752112974529,10.0,158.48,158.46,58.96]
[1752112974847,10.0,158.48,158.4,10.51533622]
[1752112974848,10.51533622,158.47,158.44,26.0]
[1752112975059,10.51533622,158.46,158.45,32.98]
[1752112976046,16.8260771,158.46,158.45,32.98]
[1752112976677,18.64964886,158.45,158.37,10.51533622]
[1752112976877,10.51533622,158.4,158.38,32.96]
[1752112977173,10.51533622,158.4,158.36,10.51533622]
[1752112977174,10.51533622,158.4,158.39,32.96]
[1752112977341,18.64964886,158.45,158.36,10.51533622]
[1752112977544,10.51533622,158.4,158.37,32.98]
[1752112977775,10.51533622,158.4,158.39,26.0]
[1752112977945,10.51533622,158.4,158.37,32.98]
[1752112977946,6.31352989,158.39,158.35,10.51533622]
[1752112978265,18.79181043,158.47,158.38,10.51533622]
[1752112978591,10.51533622,158.45,158.41,10.51533622]
[1752112978756,10.51533622,158.45,158.41,43.51533622]
[1752112978957,10.51533622,158.45,158.41,33.0]
[1752112979364,10.51533622,158.44,158.39,43.51533622]
[1752112979881,10.51533622,158.43,158.39,43.51533622]
[1752112980054,6.3123343,158.42,158.39,43.51533622]
[1752112980257,6.3123343,158.42,158.39,33.0]
[1752112980479,16.8260771,158.46,158.41,10.51533622]
[1752112981160,16.8260771,158.46,158.39,33.0]
[1752112981360,10.51533622,158.45,158.4,10.51533622]
[1752112981763,6.31074088,158.46,158.39,33.0]
[1752112981961,16.8260771,158.46,158.41,10.51533622]
[1752112982165,6.31074088,158.46,158.41,10.51533622]
[1752112982364,6.31074088,158.46,158.42,10.51533622]
[1752112982957,6.31074088,158.46,158.39,33.0]
[1752112982958,16.8260771,158.46,158.41,10.51533622]
[1752112983556,82.25024615,158.48,158.43,10.51533622]
[1752112983775,16.31024615,158.48,158.44,10.51533622]
[1752112983960,16.31024615,158.48,158.43,10.51533622]
[1752112984761,16.31024615,158.48,158.44,10.51533622]
[1752112985080,10.0,158.48,158.47,10.51533622]
[1752112986717,10.0,158.48,158.45,32.98]
[1752112986888,10.0,158.48,158.47,10.51533622]
[1752112987867,10.0,158.48,158.47,16.82567887]
[1752112988377,10.0,158.48,158.47,10.51533622]
[1752112989057,10.0,158.48,158.46,6.31068441]
[1752112989282,10.0,158.48,158.47,10.51533622]
[1752112989460,10.0,158.48,158.47,16.82567887]
[1752112994491,10.0,158.48,158.47,16.96784044]
[1752112995186,10.06,158.48,158.47,16.96784044]
[1752112996071,10.06,158.48,158.47,16.82567887]
[1752112996272,10.06,158.48,158.46,32.31065355]
[1752112996463,10.06,158.48,158.47,32.9]
[1752112996792,10.06,158.48,158.47,43.41533622]
[1752112996959,10.06,158.48,158.42,15.78022016]
[1752112997164,10.06,158.48,158.46,10.51533622]
[1752112997390,10.06,158.48,158.47,32.9]
[1752112997681,10.06,158.48,158.46,10.51533622]
[1752112997872,10.06,158.48,158.44,6.31121683]
[1752112998074,10.06,158.48,158.45,32.9]
[1752112998272,10.06,158.48,158.46,10.51533622]
[1752112999471,10.06,158.48,158.47,10.51533622]
[1752113000485,10.06,158.48,158.41,1.5933]
[1752113000688,10.51533622,158.46,158.41,10.54533622]
[1752113000991,10.51533622,158.45,158.41,0.03]
[1752113001166,10.51533622,158.44,158.41,0.03]
[1752113001969,32.14498005,158.48,158.41,0.03]
[1752113001970,10.51533622,158.43,158.41,0.03]
[1752113002166,10.51533622,158.42,158.41,0.03]
[1752113002671,16.82767052,158.42,158.41,0.03]
[1752113003179,6.31113916,158.45,158.41,0.03]
[1752113003489,10.51533622,158.43,158.41,0.03]
[1752113004085,18.64964886,158.44,158.41,0.03]